fUST/lending_fUST_20241024
["ID","MTS","AMOUNT","RATE_DAILY","PERIOD"]
[340758537,1729781451656,-1039.54,0.00022977,2]
[340758538,1729781451665,-501.27895148,0.00022977,2]
[340758539,1729781451675,-500.0,0.00022977,2]
[340758540,1729781451685,-500.0,0.00022977,2]
[340758541,1729781451694,-500.0,0.00022977,2]
[340758542,1729781451706,-1604.56,0.00022977,2]
[340758543,1729781451716,-500.0,0.00022977,2]
[340758544,1729781451726,-500.0,0.00022977,2]
[340758545,1729781451736,-1345.62,0.00022977,2]
[340758546,1729781451746,-702.47,0.00022977,2]
[340758547,1729781451757,-530.78276514,0.00022977,2]
[340758548,1729781451767,-500.0,0.00022977,2]
[340758549,1729781451777,-40.21338862,0.00022977,2]
[340758550,1729781451795,-459.78661138,0.00022977,2]
[340758551,1729781451804,-211.24338862,0.00022977,2]
[340758552,1729781451816,-288.75661138,0.00022977,2]
[340758553,1729781451825,-298.39008449,0.00022977,2]
[340758554,1729781451837,-201.60991551,0.00022977,2]
[340758555,1729781451847,-500.0,0.00022977,2]
[340758556,1729781451856,-500.0,0.00022977,2]
[340758557,1729781451865,-500.0,0.00022977,2]
[340758558,1729781451875,-500.0,0.00022977,2]
[340758559,1729781451885,-1244.31,0.00022977,2]
[340758560,1729781451894,-500.0,0.00022977,2]
[340758561,1729781451903,-581.41840555,0.00022977,2]
[340758562,1729781451913,-500.0,0.00022977,2]
[340758563,1729781451922,-500.0,0.00022977,2]
[340758564,1729781451932,-500.0,0.00022977,2]
[340758565,1729781451941,-500.0,0.00022977,2]
[340758566,1729781451953,-908.11,0.00022977,2]
[340758567,1729781451964,-500.0,0.00022977,2]
[340758568,1729781451973,-500.0,0.00022977,2]
[340758569,1729781451982,-500.0,0.00022977,2]
[340758570,1729781451992,-144.58065934,0.00022977,2]
[340758571,1729781452007,-355.41934066,0.00022977,2]
[340758572,1729781452017,-337.90090934,0.00022977,2]
[340758573,1729781452031,-162.09909066,0.00022977,2]
[340758574,1729781452040,-500.63562992,0.00022977,2]
[340758575,1729781452053,-500.0,0.00022977,2]
[340758576,1729781452062,-500.0,0.00022977,2]
[340758577,1729781452072,-987.11,0.00022977,2]
[340758578,1729781452082,-500.0,0.00022977,2]
[340758579,1729781452093,-500.0,0.00022977,2]
[340758580,1729781452103,-500.0,0.00022977,2]
[340758581,1729781452113,-500.0,0.00022977,2]
[340758582,1729781452122,-482.96242387,0.00022977,2]
[340758583,1729781452135,-17.03757613,0.00022977,2]
[340758584,1729781452145,-500.0,0.00022977,2]
[340758585,1729781452155,-500.0,0.00022977,2]
[340758586,1729781452165,-500.0,0.00022977,2]
[340758587,1729781452174,-803.07,0.00022977,2]
[340758588,1729781452184,-458.86534593,0.00022977,2]
[340758589,1729781452199,-41.13465407,0.00022977,2]
[340758590,1729781452209,-1056.69,0.00022977,2]
[340758591,1729781452219,-500.0,0.00022977,2]
[340758592,1729781452229,-500.0,0.00022977,2]
[340758593,1729781452239,-500.0,0.00022977,2]
[340758594,1729781452249,-500.0,0.00022977,2]
[340758595,1729781452261,-286.62534593,0.00022977,2]
[340758596,1729781452273,-213.37465407,0.00022977,2]
[340758597,1729781452283,-533.89117102,0.00022977,2]
[340758598,1729781452295,-392.71882898,0.00022977,2]
[340758599,1729781452306,-500.0,0.00022977,2]
[340758600,1729781452316,-500.0,0.00022977,2]
[340758601,1729781452326,-501.44989439,0.00022977,2]
[340758602,1729781452335,-2017.74300782,0.00022977,2]
[340758603,1729781452579,-500.0,0.00022191,2]
[340758604,1729781452589,-500.0,0.00022465,2]
[340758605,1729781452599,-500.0,0.00022739,2]
[340758606,1729781452609,-979.58699218,0.00022977,2]
[340758607,1729781452618,-500.0,0.00022977,2]
[340758608,1729781452627,-500.0,0.00022977,2]
[340758609,1729781452637,-500.0,0.00022977,2]
[340758610,1729781452648,-573.76,0.00022977,2]
[340758611,1729781452663,-555.34542569,0.00022977,2]
[340758612,1729781452675,-1338.18457431,0.00022977,2]
[340758613,1729781452684,-500.0,0.00022977,2]
[340758614,1729781452696,-500.0,0.00022977,2]
[340758615,1729781452706,-142.98863663,0.00022977,2]
[340758616,1729781452999,-357.01136337,0.00022977,2]
[340758617,1729781453011,-532.72,0.00022977,2]
[340758618,1729781453020,-500.0,0.00022977,2]
[340758619,1729781453031,-881.57,0.00022977,2]
[340758620,1729781453040,-239.30540907,0.00022977,2]
[340758621,1729781453051,-500.0,0.00022977,2]
[340758622,1729781453061,-490.01066451,0.00022977,2]
[340758623,1729781453070,-500.0,0.00022977,2]
[340758624,1729781453080,-306.55509186,0.00022977,2]
[340758625,1729781453091,-505.17078555,0.00022977,2]
[340758626,1729781453100,-500.0,0.00022977,2]
[340758627,1729781453112,-500.0,0.00022977,2]
[340758628,1729781453122,-500.0,0.00022977,2]
[340758629,1729781453132,-386.18565859,0.00022977,2]
[340758630,1729781453144,-198.54434141,0.00022977,2]
[340758631,1729781453154,-468.95565859,0.00022977,2]
[340758632,1729781453167,-31.04434141,0.00022977,2]
[340758633,1729781453177,-229.95565858,0.00022977,2]
[340758634,1729781453191,-270.04434142,0.00022977,2]
[340758635,1729781453201,-500.0,0.00022977,2]
[340758636,1729781453211,-500.0,0.00022977,2]
[340758637,1729781453221,-500.0,0.00022977,2]
[340758638,1729781453231,-500.0,0.00022977,2]
[340758639,1729781453241,-500.0,0.00022977,2]
[340758640,1729781453251,-876.74,0.00022977,2]
[340758641,1729781453263,-500.0,0.00022977,2]
[340758642,1729781453274,-500.0,0.00022977,2]
[340758643,1729781453285,-500.0,0.00022977,2]
[340758644,1729781453294,-1095.63,0.00022977,2]
[340758645,1729781453304,-303.54451013,0.00022977,2]
[340758646,1729781453313,-1788.85,0.00022977,2]
[340758647,1729781453322,-500.0,0.00022977,2]
[340758648,1729781453334,-500.0,0.00022977,2]
[340758649,1729781453343,-1835.92,0.00022977,2]
[340758650,1729781453353,-500.0,0.00022977,2]
[340758651,1729781453362,-500.0,0.00022977,2]
[340758652,1729781453372,-523.62467727,0.00022977,2]
[340758653,1729781453381,-500.0,0.00022977,2]
[340758654,1729781453391,-643.24527051,0.00022977,2]
[340758655,1729781453400,-500.0,0.00022977,2]
[340758656,1729781453410,-1022.12,0.00022977,2]
[340758657,1729781453419,-500.0,0.00022977,2]
[340758658,1729781453428,-580.25962984,0.00022977,2]
[340758659,1729781453440,-301.24211674,0.00022977,2]
[340758660,1729781453452,-1095.61825342,0.00022977,2]
[340758661,1729781453461,-469.66972887,0.00022977,2]
[340758662,1729781932981,212.69492086,0.00016,2]
[340758663,1729781952339,162.906402,0.00013973,2]
[340758668,1729782264465,5000.0,0.00016,2]
[340758669,1729782280092,366.11862513,0.00016,2]
[340758675,1729782393374,5000.0,0.00016,2]
[340758676,1729782408708,5000.0,0.00016,2]
[340758677,1729782424643,5000.0,0.00016,2]
[340758678,1729782440676,4633.88137487,0.00016,2]
[340758735,1729782632018,-300.0,0.00020563,2]
[340758737,1729782632027,-300.0,0.00020563,2]
[340758739,1729782632038,-24900.0,0.00020564,2]
[340758741,1729782632048,-195.488156,0.00021056,2]
[340758743,1729782632058,-195.488156,0.00021114,2]
[340758745,1729782632068,-195.488156,0.00021171,2]
[340758747,1729782632078,-195.488156,0.00021229,2]
[340758749,1729782632088,-195.488156,0.00021287,2]
[340758751,1729782632098,-195.488156,0.00021345,2]
[340758753,1729782632107,-195.488156,0.00021402,2]
[340758755,1729782632116,-195.488156,0.0002146,2]
[340758757,1729782632125,-195.488156,0.00021518,2]
[340758759,1729782632135,-195.488156,0.00021576,2]
[340758761,1729782632144,-306.0,0.00021616,2]
[340758763,1729782632154,-195.488156,0.00021633,2]
[340758765,1729782632163,-195.488156,0.00021691,2]
[340758767,1729782632173,-195.488156,0.00021749,2]
[340758769,1729782632183,-864.06721633,0.00021796,2]
[340758771,1729782632193,-2684.98481114,0.00021796,2]
[340758773,1729782632203,-195.488156,0.00021807,2]
[340758775,1729782632218,-195.488156,0.00021864,2]
[340758777,1729782632227,-22961.8168716,0.00021887,3]
[340758779,1729782632237,-206.94,0.00021887,3]
[340758781,1729782632248,-620.84,0.00021887,3]
[340758784,1729782632258,-11480.9084358,0.00021887,3]
[340758786,1729782632268,-45923.6337432,0.00021897,3]
[340758788,1729782632278,-11480.9084358,0.00021897,3]
[340758790,1729782632288,-500.0,0.00021906,2]
[340758792,1729782632298,-500.0,0.00021906,2]
[340758794,1729782632309,-500.0,0.00021906,2]
[340758796,1729782632318,-411.28704263,0.00021906,2]
[340758798,1729782632329,-500.0,0.00021906,2]
[340758800,1729782632340,-5410.75094628,0.00021907,3]
[340758930,1729782643041,-1406.40386955,0.00021907,3]
[340758933,1729782643054,-96511.02110617,0.00021907,3]
[340758934,1729782643064,-600.0,0.00021916,2]
[340758935,1729782643074,-500.0,0.00021917,2]
[340758936,1729782643084,-1289.81,0.00021917,2]
[340758937,1729782643094,-844.28,0.00021917,2]
[340758938,1729782643103,-936.75,0.00021917,2]
[340758939,1729782643114,-500.0,0.00021917,2]
[340758940,1729782643123,-519.48041946,0.00021917,2]
[340758941,1729782643134,-575.79424118,0.00021917,2]
[340758942,1729782643144,-1655.25,0.00021917,2]
[340758943,1729782643154,-500.0,0.00021917,2]
[340758944,1729782643164,-869.05,0.00021917,2]
[340758945,1729782643175,-500.0,0.00021917,2]
[340758946,1729782643186,-500.0,0.00021917,2]
[340758947,1729782643196,-663.61,0.00021917,2]
[340758948,1729782643206,-500.0,0.00021917,2]
[340758949,1729782643221,-1198.87,0.00021917,2]
[340758950,1729782643231,-500.0,0.00021917,2]
[340758952,1729782643242,-709.05,0.00021917,2]
[340758953,1729782643251,-500.0,0.00021917,2]
[340758954,1729782643261,-515.91137391,0.00021917,2]
[340758955,1729782643271,-1047.94,0.00021917,2]
[340758956,1729782643280,-518.73899076,0.00021917,2]
[340758957,1729782643293,-1546.15,0.00021917,2]
[340758958,1729782643303,-578.1,0.00021917,2]
[340758959,1729782643313,-786.59,0.00021917,2]
[340758960,1729782643323,-500.0,0.00021917,2]
[340758961,1729782643334,-500.0,0.00021917,2]
[340758962,1729782643343,-500.0,0.00021917,2]
[340758963,1729782643354,-500.0,0.00021917,2]
[340758964,1729782643365,-735.7,0.00021917,2]
[340758965,1729782643376,-793.09,0.00021917,2]
[340758966,1729782643386,-500.0,0.00021917,2]
[340758967,1729782643397,-523.23675344,0.00021917,2]
[340758968,1729782643407,-500.0,0.00021917,2]
[340758969,1729782643416,-500.0,0.00021917,2]
[340758970,1729782643426,-500.0,0.00021917,2]
[340758971,1729782643437,-502.20174266,0.00021917,2]
[340758972,1729782643447,-500.0,0.00021917,2]
[340758973,1729782643456,-500.0,0.00021917,2]
[340758974,1729782643467,-1058.73,0.00021917,2]
[340758975,1729782643477,-500.0,0.00021917,2]
[340758976,1729782643488,-500.0,0.00021917,2]
[340758977,1729782643498,-500.0,0.00021917,2]
[340758978,1729782643509,-501.2181301,0.00021917,2]
[340758979,1729782643519,-500.0,0.00021917,2]
[340758980,1729782643529,-500.0,0.00021917,2]
[340758981,1729782643539,-500.0,0.00021917,2]
[340758982,1729782643550,-152.02823185,0.00021917,2]
[340758983,1729782643561,-769.61,0.00021917,2]
[340758984,1729782643570,-500.0,0.00021917,2]
[340758985,1729782643581,-500.0,0.00021917,2]
[340758986,1729782643591,-500.0,0.00021917,2]
[340758987,1729782643600,-500.0,0.00021917,2]
[340758988,1729782643610,-971.33,0.00021917,2]
[340758989,1729782643620,-1620.3,0.00021917,2]
[340758990,1729782643631,-500.0,0.00021917,2]
[340758991,1729782643642,-213.93960341,0.00021917,2]
[340758992,1729782643652,-624.12,0.00021917,2]
[340758993,1729782643663,-1029.31,0.00021917,2]
[340758994,1729782643673,-500.0,0.00021917,2]
[340758995,1729782643682,-500.0,0.00021917,2]
[340758996,1729782643692,-1642.87,0.00021917,2]
[340758997,1729782643702,-535.52,0.00021917,2]
[340758998,1729782643712,-500.0,0.00021917,2]
[340758999,1729782643723,-500.0,0.00021917,2]
[340759000,1729782643732,-500.0,0.00021917,2]
[340759001,1729782643742,-1095.99,0.00021917,2]
[340759002,1729782643751,-500.0,0.00021917,2]
[340759003,1729782643761,-1086.85,0.00021917,2]
[340759004,1729782643771,-500.0,0.00021917,2]
[340759005,1729782643781,-500.0,0.00021917,2]
[340759006,1729782643791,-604.32,0.00021917,2]
[340759007,1729782643801,-500.0,0.00021917,2]
[340759008,1729782643810,-500.0,0.00021917,2]
[340759009,1729782643820,-500.0,0.00021917,2]
[340759010,1729782643830,-500.0,0.00021917,2]
[340759011,1729782643840,-2133.47,0.00021917,2]
[340759012,1729782643850,-500.0,0.00021917,2]
[340759013,1729782643859,-500.0,0.00021917,2]
[340759014,1729782643868,-500.0,0.00021917,2]
[340759015,1729782643879,-1062.84,0.00021917,2]
[340759016,1729782643889,-500.0,0.00021917,2]
[340759017,1729782643900,-923.55,0.00021917,2]
[340759018,1729782643909,-500.0,0.00021917,2]
[340759019,1729782643918,-1565.37,0.00021917,2]
[340759020,1729782643928,-564.17,0.00021917,2]
[340759021,1729782643938,-500.39417871,0.00021917,2]
[340759022,1729782643948,-2160.21,0.00021917,2]
[340759023,1729782643958,-500.0,0.00021917,2]
[340759024,1729782643970,-1637.05,0.00021917,2]
[340759025,1729782643980,-500.0,0.00021917,2]
[340759026,1729782643989,-500.0,0.00021917,2]
[340759027,1729782643998,-500.0,0.00021917,2]
[340759028,1729782644007,-500.0,0.00021917,2]
[340759029,1729782644017,-500.0,0.00021917,2]
[340759030,1729782644027,-500.0,0.00021917,2]
[340759031,1729782644038,-500.0,0.00021917,2]
[340759032,1729782644049,-500.0,0.00021917,2]
[340759033,1729782644058,-1083.7,0.00021917,2]
[340759034,1729782644068,-627.38,0.00021917,2]
[340759035,1729782644079,-500.0,0.00021917,2]
[340759036,1729782644090,-500.0,0.00021917,2]
[340759037,1729782644100,-520.38750485,0.00021917,2]
[340759038,1729782644110,-500.0,0.00021917,2]
[340759039,1729782644120,-500.0,0.00021917,2]
[340759040,1729782644130,-500.0,0.00021917,2]
[340759041,1729782644140,-500.0,0.00021917,2]
[340759042,1729782644151,-365.01366653,0.00021917,2]
[340759043,1729782644161,-500.0,0.00021917,2]
[340759044,1729782644171,-1414.15,0.00021917,2]
[340759045,1729782644181,-500.0,0.00021917,2]
[340759046,1729782644192,-500.0,0.00021917,2]
[340759047,1729782644202,-500.0,0.00021917,2]
[340759048,1729782644217,-763.54,0.00021917,2]
[340759049,1729782644227,-500.0,0.00021917,2]
[340759050,1729782644236,-500.0,0.00021917,2]
[340759051,1729782644246,-500.0,0.00021917,2]
[340759052,1729782644256,-500.0,0.00021917,2]
[340759053,1729782644265,-500.0,0.00021917,2]
[340759054,1729782644275,-500.0,0.00021917,2]
[340759055,1729782644284,-315.9138978,0.00021917,2]
[340759056,1729782644293,-500.0,0.00021917,2]
[340759057,1729782644303,-926.25,0.00021917,2]
[340759058,1729782644314,-500.0,0.00021917,2]
[340759059,1729782644324,-1916.63,0.00021917,2]
[340759060,1729782644335,-1154.15,0.00021917,2]
[340759061,1729782644345,-500.0,0.00021917,2]
[340759062,1729782644356,-819.29,0.00021917,2]
[340759063,1729782644368,-2728.38,0.00021917,2]
[340759064,1729782644378,-545.33982066,0.00021917,2]
[340759065,1729782644390,-500.0,0.00021917,2]
[340759066,1729782644401,-500.0,0.00021917,2]
[340759067,1729782644410,-500.0,0.00021917,2]
[340759068,1729782644421,-500.0,0.00021917,2]
[340759069,1729782644432,-1324.480956,0.00021917,2]
[340759070,1729782644444,-500.0,0.00021917,2]
[340759071,1729782644455,-500.0,0.00021917,2]
[340759072,1729782644470,-1324.480956,0.00021917,2]
[340759073,1729782644479,-485.8952421,0.00021917,2]
[340759074,1729782644492,-208.05443156,0.00021917,2]
[340759075,1729782644502,-500.0,0.00021917,2]
[340759076,1729782644512,-500.0,0.00021917,2]
[340759077,1729782644521,-2059.93,0.00021917,2]
[340759078,1729782644532,-500.0,0.00021917,2]
[340759079,1729782644543,-500.0,0.00021917,2]
[340759080,1729782644554,-500.0,0.00021917,2]
[340759081,1729782644564,-1240.7,0.00021917,2]
[340759082,1729782644573,-1000.0,0.00021917,5]
[340759083,1729782644583,-500.0,0.00021917,2]
[340759084,1729782644593,-151.0,0.00021917,2]
[340759085,1729782644603,-500.0,0.00021917,2]
[340759086,1729782644613,-500.0,0.00021917,2]
[340759087,1729782644624,-151.0,0.00021917,2]
[340759088,1729782644635,-896.04,0.00021917,2]
[340759089,1729782644646,-500.0,0.00021917,2]
[340759090,1729782644656,-500.0,0.00021917,2]
[340759091,1729782644666,-519.13440875,0.00021917,2]
[340759092,1729782644678,-235.46,0.00021917,2]
[340759093,1729782644689,-1537.7,0.00021917,2]
[340759094,1729782644701,-2413.6,0.00021917,2]
[340759095,1729782644712,-500.0,0.00021917,2]
[340759096,1729782644725,-500.0,0.00021917,2]
[340759097,1729782644735,-500.0,0.00021917,2]
[340759098,1729782644744,-500.0,0.00021917,2]
[340759099,1729782644753,-500.0,0.00021917,2]
[340759100,1729782644762,-500.0,0.00021917,2]
[340759101,1729782644771,-464.325428,0.00021917,2]
[340759102,1729782644781,-1456.24,0.00021917,2]
[340759103,1729782644791,-2072.73,0.00021917,2]
[340759104,1729782644803,-500.0,0.00021917,2]
[340759105,1729782644814,-500.0,0.00021917,2]
[340759106,1729782644824,-500.0,0.00021917,2]
[340759107,1729782644835,-500.0,0.00021917,2]
[340759108,1729782644846,-586.03715964,0.00021917,2]
[340759109,1729782644857,-500.0,0.00021917,2]
[340759110,1729782644866,-500.0,0.00021917,2]
[340759111,1729782644876,-500.0,0.00021917,2]
[340759112,1729782644886,-500.0,0.00021917,2]
[340759113,1729782644896,-552.98,0.00021917,2]
[340759114,1729782644906,-500.0,0.00021917,2]
[340759115,1729782644917,-500.0,0.00021917,2]
[340759116,1729782644927,-1352.31,0.00021917,2]
[340759117,1729782644939,-500.0,0.00021917,2]
[340759118,1729782644951,-511.82128202,0.00021917,2]
[340759119,1729782644964,-500.0,0.00021917,2]
[340759120,1729782644992,-500.0,0.00021917,2]
[340759121,1729782645003,-157.93481481,0.00021917,2]
[340759122,1729782645013,-500.0,0.00021917,2]
[340759123,1729782645024,-646.96,0.00021917,2]
[340759124,1729782645035,-500.0,0.00021917,2]
[340759125,1729782645045,-500.0,0.00021917,2]
[340759126,1729782645055,-151.0,0.00021917,2]
[340759127,1729782645066,-500.0,0.00021917,2]
[340759128,1729782645076,-1707.98,0.00021917,2]
[340759129,1729782645086,-500.0,0.00021917,2]
[340759130,1729782645097,-178.157027,0.00021917,2]
[340759131,1729782645107,-500.0,0.00021917,2]
[340759132,1729782645116,-1999.16378,0.00021917,2]
[340759133,1729782645126,-151.0,0.00021917,2]
[340759134,1729782645137,-500.0,0.00021917,2]
[340759135,1729782645147,-500.0,0.00021917,2]
[340759136,1729782645158,-505.27463537,0.00021917,2]
[340759137,1729782645169,-178.157027,0.00021917,2]
[340759138,1729782645179,-1016.1,0.00021917,2]
[340759139,1729782645189,-1999.16378,0.00021917,2]
[340759140,1729782645199,-151.0,0.00021917,2]
[340759141,1729782645212,-1470.51,0.00021917,2]
[340759142,1729782645234,-500.0,0.00021917,2]
[340759143,1729782645244,-709.5,0.00021917,2]
[340759144,1729782645255,-500.0,0.00021917,2]
[340759145,1729782645266,-500.0,0.00021917,2]
[340759146,1729782645276,-500.0,0.00021917,2]
[340759147,1729782645286,-151.0,0.00021917,2]
[340759148,1729782645297,-621.25305602,0.00021917,2]
[340759149,1729782645308,-500.0,0.00021917,2]
[340759150,1729782645319,-500.0,0.00021917,2]
[340759151,1729782645330,-195.458555,0.00021917,2]
[340759152,1729782645340,-500.0,0.00021917,2]
[340759153,1729782645351,-500.0,0.00021917,2]
[340759154,1729782645360,-500.0,0.00021917,2]
[340759155,1729782645370,-388.498768,0.00021917,2]
[340759156,1729782645380,-195.458555,0.00021917,2]
[340759157,1729782645390,-500.0,0.00021917,2]
[340759158,1729782645400,-500.0,0.00021917,2]
[340759159,1729782645411,-388.498768,0.00021917,2]
[340759161,1729782645421,-500.0,0.00021917,2]
[340759162,1729782645431,-685.61,0.00021917,2]
[340759163,1729782645440,-500.0,0.00021917,2]
[340759164,1729782645450,-500.0,0.00021917,2]
[340759165,1729782645462,-500.0,0.00021917,2]
[340759166,1729782645479,-905.18,0.00021917,2]
[340759167,1729782645489,-505.98766982,0.00021917,2]
[340759168,1729782645500,-500.0,0.00021917,2]
[340759169,1729782645510,-500.0,0.00021917,2]
[340759170,1729782645521,-500.0,0.00021917,2]
[340759171,1729782645532,-500.0,0.00021917,2]
[340759172,1729782645541,-199.34507393,0.00021917,2]
[340759173,1729782645552,-150.56415302,0.00021917,2]
[340759174,1729782645563,-500.0,0.00021917,2]
[340759175,1729782645573,-500.0,0.00021917,2]
[340759176,1729782645582,-2064.38,0.00021917,2]
[340759177,1729782645592,-500.0,0.00021917,2]
[340759178,1729782645603,-500.0,0.00021917,2]
[340759179,1729782645613,-500.0,0.00021917,2]
[340759180,1729782645623,-500.0,0.00021917,2]
[340759181,1729782645634,-752.69,0.00021917,2]
[340759182,1729782645644,-151.0,0.00021917,2]
[340759183,1729782645655,-630.11902932,0.00021917,2]
[340759184,1729782645665,-151.0,0.00021917,2]
[340759185,1729782645675,-500.0,0.00021917,2]
[340759187,1729782645684,-593.67,0.00021917,2]
[340759188,1729782645693,-3127.04,0.00021917,2]
[340759189,1729782645703,-1319.52,0.00021917,2]
[340759190,1729782645712,-500.0,0.00021917,2]
[340759191,1729782645728,-500.0,0.00021917,2]
[340759193,1729782645739,-500.0,0.00021917,2]
[340759194,1729782645748,-500.0,0.00021917,2]
[340759195,1729782645758,-2117.07,0.00021917,2]
[340759196,1729782645768,-289.19065,0.00021917,2]
[340759197,1729782645777,-745.11,0.00021917,2]
[340759198,1729782645786,-1984.25,0.00021917,2]
[340759200,1729782645796,-289.19065,0.00021917,2]
[340759201,1729782645806,-1085.75,0.00021917,2]
[340759202,1729782645816,-151.0,0.00021917,2]
[340759203,1729782645827,-291.43990401,0.00021917,2]
[340759204,1729782645837,-757.19,0.00021917,2]
[340759205,1729782645847,-500.0,0.00021917,2]
[340759206,1729782645857,-151.0,0.00021917,2]
[340759207,1729782645867,-769.04,0.00021917,2]
[340759208,1729782645876,-500.0,0.00021917,2]
[340759209,1729782645886,-500.0,0.00021917,2]
[340759210,1729782645896,-500.0,0.00021917,2]
[340759211,1729782645906,-502.67989755,0.00021917,2]
[340759212,1729782645916,-500.0,0.00021917,2]
[340759213,1729782645925,-500.0,0.00021917,2]
[340759214,1729782645935,-500.0,0.00021917,2]
[340759215,1729782645946,-500.0,0.00021917,2]
[340759216,1729782645957,-541.24266217,0.00021917,2]
[340759217,1729782645971,-689.52,0.00021917,2]
[340759218,1729782645981,-629.120924,0.00021917,2]
[340759219,1729782645991,-500.0,0.00021917,2]
[340759220,1729782646000,-629.120924,0.00021917,2]
[340759221,1729782646011,-500.0,0.00021917,2]
[340759222,1729782646020,-835.8,0.00021917,2]
[340759223,1729782646030,-500.0,0.00021917,2]
[340759224,1729782646040,-690.17,0.00021917,2]
[340759225,1729782646050,-151.0,0.00021917,2]
[340759226,1729782646059,-151.0,0.00021917,2]
[340759227,1729782646068,-500.0,0.00021917,2]
[340759228,1729782646078,-500.0,0.00021917,2]
[340759229,1729782646089,-151.0,0.00021917,2]
[340759230,1729782646099,-151.0,0.00021917,2]
[340759231,1729782646108,-629.120924,0.00021917,2]
[340759232,1729782646118,-500.0,0.00021917,2]
[340759233,1729782646129,-151.0,0.00021917,2]
[340759234,1729782646140,-629.120924,0.00021917,2]
[340759235,1729782646150,-151.0,0.00021917,2]
[340759236,1729782646160,-500.0,0.00021917,2]
[340759237,1729782646170,-500.0,0.00021917,2]
[340759238,1729782646179,-151.0,0.00021917,2]
[340759239,1729782646189,-151.0,0.00021917,2]
[340759240,1729782646199,-3808.14,0.00021917,2]
[340759241,1729782646210,-299.95391,0.00021917,2]
[340759242,1729782646224,-555.43157953,0.00021917,2]
[340759243,1729782646234,-500.0,0.00021917,2]
[340759244,1729782646245,-500.0,0.00021917,2]
[340759245,1729782646255,-2214.95,0.00021917,2]
[340759246,1729782646264,-500.0,0.00021917,2]
[340759247,1729782646274,-2042.04,0.00021917,2]
[340759248,1729782646285,-500.0,0.00021917,2]
[340759249,1729782646297,-151.0,0.00021917,2]
[340759250,1729782646307,-151.0,0.00021917,2]
[340759251,1729782646317,-500.0,0.00021917,2]
[340759252,1729782646327,-500.0,0.00021917,2]
[340759253,1729782646336,-151.0,0.00021917,2]
[340759254,1729782646346,-151.0,0.00021917,2]
[340759255,1729782646355,-500.0,0.00021917,2]
[340759256,1729782646365,-1356.84,0.00021917,2]
[340759257,1729782646375,-151.0,0.00021917,2]
[340759258,1729782646386,-151.0,0.00021917,2]
[340759259,1729782646396,-708.71,0.00021917,2]
[340759260,1729782646406,-708.71,0.00021917,2]
[340759261,1729782646416,-708.71,0.00021917,2]
[340759262,1729782646426,-708.71,0.00021917,2]
[340759263,1729782646610,-708.71,0.00021917,2]
[340759264,1729782646620,-708.71,0.00021917,2]
[340759265,1729782646631,-708.71,0.00021917,2]
[340759266,1729782646641,-708.71,0.00021917,2]
[340759267,1729782646651,-1875.21,0.00021917,2]
[340759268,1729782646660,-708.71,0.00021917,2]
[340759269,1729782646670,-708.71,0.00021917,2]
[340759270,1729782646680,-708.71,0.00021917,2]